{"text_format":"1","workbook":"xlsx","n_sheets":36,"sheets":["Инструкция","Обновление","Лог обновления","Титульный","стр 1-2","Расшифровка показателей","Комментарии","Проверка","AllSheetsInThisWorkbook","et_union","TEHSHEET","REESTR_ORG","REESTR_FILTERED","REESTR_MO","modHyperlink","modChange","modPROV","modTitleSheetHeaders","modServiceModule","modCommandButton","modReestr","modClassifierValidate","modInfo","modfrmReestr","modfrmDateChoose","modDblClick","Паспорт","modUpdTemplMain","modRegionSelectSub","modThisWorkbook","modReestrMO","modSheetMain01","modSheetMain02","modSheetMain03","modSheetMain04","modSheetMain05"],"not_rendered":{"charts":0,"images":11,"macros":1,"external_links":0,"defined_names":96,"comments":0,"pivot_tables":0},"unopened":[],"bounds":{"document_bytes":16777216,"sheet_cells":100000,"rows_first":2000,"rows_last":500,"rows_between":2000,"halvings":0,"cell_chars":16384,"cell_head_chars":4096},"cells_cut":0,"cells_raw":0,"read":"whole","date_system":"1900"}

{"sheet":"Инструкция","index":0,"n_rows":53,"n_cols":6,"rows_kept":53,"cut":false,"hidden":false,"merged":[[43,2,43,3],[42,5,42,8],[43,5,43,8],[39,1,39,9],[42,2,42,3],[22,2,22,4],[29,2,29,3],[29,4,29,7],[24,2,24,3],[24,4,24,7],[23,2,23,3],[23,4,23,7],[25,2,25,3],[25,4,25,7],[26,2,26,3],[26,4,26,7],[35,2,35,3],[35,4,35,7],[27,2,27,3],[27,4,27,7],[33,4,33,7],[34,2,34,3],[34,4,34,7],[31,2,31,4],[32,2,32,3],[32,4,32,7],[33,2,33,3],[28,2,28,3],[3,1,3,9],[18,2,18,7],[19,2,19,7],[13,4,14,7],[21,2,21,7],[6,2,6,7],[7,2,7,7],[8,2,8,7],[9,2,9,7],[17,2,17,7],[51,2,51,3],[52,2,52,3],[49,5,49,8],[50,5,50,8],[51,5,51,8],[52,5,52,8],[48,2,48,3],[49,2,49,3],[50,2,50,3],[20,2,20,7],[48,5,48,8],[44,2,44,3],[45,2,45,3],[46,2,46,3],[47,2,47,3],[45,5,45,8],[46,5,46,8],[47,5,47,8],[28,4,28,7],[44,5,44,8],[36,2,36,3],[36,4,36,7]]}
[]
[null,null,null,null,"FORMA4.BUHG.2011"]
[]
[null,"Инструкция по заполнению шаблона\n\"Отчет о движении денежных средств\""]
[]
[]
[null,null,"Технические требования:\n\n• макросы во время работы должны быть включены \n\n"]
[null,null,"• на рабочем месте должен быть установлен MS Office 2007, 2010, 2013 с полной версией MS Excel"]
[null,null,"• макросы во время работы должны быть включены "]
[null,null,"• для корректной работы шаблона требуется выбрать низкий уровень безопасности\n(В MS Excel 2007 после открытия файла шаблона нажать на кнопку «Параметры…» → «Предупреждение системы безопасности» → «Включить это содержимое» → «OK»)"]
[null,null,null,"Цвета ячеек:"]
[null,null,null,"●","Голубой – ячейки, обязательные для заполнения;"]
[null,null,null,"●","Желтый – ячейки, предназначенные для заполнения;"]
[null,null,null,"●","Зеленый – ячейки с формулами/константами или заполняемые автоматически (например, при выборе организации из реестра или выборе даты)."]
[]
[null,null,null,"Пояснение к заполнению (необходимо нажать один раз)."]
[]
[null,null,"Шаблон может быть сохранен на любом этапе заполнения!"]
[null,null,"• При сохранении шаблона осуществляется проверка на наличие и корректность (например, КПП – 9 цифр) обязательных параметров на листах. "]
[null,null,"• Если какая-то ячейка не удовлетворяет условию проверки, на лист «Проверка» добавляется гиперссылка на данную ячейку и причина, по которой шаблон не будет загружен в хранилище данных. "]
[null,null,"• В колонке «Статус ошибки» для каждого сообщения возможны 2 значения: ошибка и предупреждение. "]
[null,null,"• При наличии сообщений со статусом «Ошибка» шаблон будет отклонён системой, сообщения со статусом «Предупреждение» носят информационный характер, и такой шаблон будет принят системой."]
[null,null,"Организационно-технические консультации:"]
[null,null,"ФИО:"]
[null,null,"телефон:"]
[null,null,"e-mail:"]
[null,null,"WEB-сайт:"]
[null,null,"Комментарий"]
[null,null,"Дистрибутивы:"]
[null,null,"Дистрибутивы (ссылка):"]
[]
[null,null,"Консультации по методологии заполнения форм:"]
[null,null,"ФИО:"]
[null,null,"телефон:"]
[null,null,"e-mail:"]
[null,null,"WEB-сайт:"]
[null,null,"Комментарий"]
[]
[]
[null,"Список сокращений"]
[]
[]
[null,null,"Сокращение",null,"Расшифровка","Данные"]
[null,null,1,null,2,3]
[null,null,"ОКПО",null,"Общероссийский классификатор предприятий и организаций"]
[null,null,"ОКВЭД",null,"Общероссийский классификатор видов экономической деятельности","http://www.gmcgks.ru/new_page_96.htm"]
[null,null,"ОКАТО",null,"Общероссийский классификатор объектов административно-территориального деления","http://www.gmcgks.ru/new_page_87.htm"]
[null,null,"ОКОГУ",null,"Общероссийский классификатор органов государственной власти и управления","http://www.gmcgks.ru/new_page_77.htm"]
[null,null,"ОКОПФ",null,"Общероссийский классификатор организационно-правовых форм","http://www.gmcgks.ru/new_page_95.htm"]
[null,null,"ОКФС",null,"Общероссийский классификатор форм собственности","http://www.gmcgks.ru/new_page_94.htm"]
[null,null,"ОКУД",null,"Общероссийский классификатор управленческой документации","http://www.gmcgks.ru/new_page_80.htm"]
[null,null,"ОКЕИ",null,"Общероссийский классификатор единиц измерения","http://www.gmcgks.ru/new_page_83.htm"]
[null,null,"ОКТМО",null,"Общероссийский классификатор территорий муниципальных образований","http://www.gks.ru/metod/classifiers.html"]

{"sheet":"Обновление","index":1,"n_rows":24,"n_cols":15,"rows_kept":24,"cut":false,"hidden":true,"merged":[[1,14,1,16],[2,2,2,15],[23,2,23,7],[23,8,23,15]]}
[]
[null,null,null,null,null,null,null,null,null,null,null,null,null,null,{"$f":"version","v":0}]
[null,null,"Инструкция по обновлению шаблона"]
[]
[]
[]
[]
[]
[]
[]
[]
[]
[]
[]
[]
[]
[]
[]
[]
[]
[]
[]
[]
[null,null,"Если компьютер имеет подключение к Интернет, можно автоматически проверять наличие доступных обновлений. Выберите способ оповещения о наличии обновлений для шаблона:"]

{"sheet":"Лог обновления","index":2,"n_rows":9,"n_cols":3,"rows_kept":9,"cut":false,"hidden":true,"merged":[]}
["Дата/Время","Сообщение","Статус"]
["3/8/2013  6:28:46 PM","Проверка доступных обновлений...","Информация"]
["3/8/2013  6:28:48 PM","Версия шаблона 2.1 актуальна, обновление не требуется","Информация"]
["11/3/2016  2:47:08 AM","Проверка доступных обновлений...","Информация"]
["11/3/2016  2:47:11 AM","Версия шаблона 2.2 актуальна, обновление не требуется","Информация"]
["11/3/2016  2:53:36 AM","Проверка доступных обновлений...","Информация"]
["11/3/2016  2:53:38 AM","Версия шаблона 2.2 актуальна, обновление не требуется","Информация"]
["11/10/2016  12:05:11 PM","Проверка доступных обновлений...","Информация"]
["11/10/2016  12:05:12 PM","Версия шаблона 2.2 актуальна, обновление не требуется","Информация"]

{"sheet":"Титульный","index":3,"n_rows":51,"n_cols":10,"rows_kept":51,"cut":false,"hidden":false,"merged":[[2,9,2,10],[5,1,5,10],[8,3,8,5],[14,3,14,5],[10,2,10,5],[3,1,3,10],[11,3,11,5],[12,3,12,5],[50,3,50,5],[25,2,25,5],[46,3,46,5],[47,3,47,5],[48,3,48,5],[44,2,44,5],[34,3,34,5],[37,3,37,5],[41,3,41,5],[32,2,32,5],[30,3,30,5],[45,3,45,5],[26,10,28,10],[21,8,21,9],[23,8,23,9],[21,3,21,5],[15,8,15,9],[16,2,16,5],[19,7,19,9],[28,3,28,5],[18,3,18,5],[19,3,19,5],[20,7,20,9],[16,8,16,9],[23,3,23,5],[18,7,18,9],[17,8,17,9],[26,3,26,5],[17,3,17,5],[38,7,42,9],[38,3,38,5],[33,3,33,5],[20,3,20,5],[42,3,42,5],[36,2,36,5],[40,2,40,5]]}
[]
[null,null,null,null,null,null,null,null,null,"01.01.2016"]
[]
[null,"Отчет о движении денежных средств"]
[]
[null,"Приложение\nк Приказу Минфина РФ\nот 02.07.2010 № 66н\n(в ред. Приказов Минфина России от 05.10.2011 №124н, \nот 17.08.2012 №113н, от 04.12.2012 №154н)"]
[]
[null,null,"Создать печатную форму"]
[null,null,"Регион РФ","Рязанская область"]
[]
[null,null,"Отчётный период"]
[null,null,"Год","2016"]
[null,null,"Квартал (с нарастающим итогом)","год"]
[]
[null,null,"Признак филиала","нет"]
[null,null,null,null,null,null,null,"Форма №2 по ОКУД","0710004"]
[null,null,null,null,null,null,null,"Дата (год,месяц,число)","31.12.2016"]
[null,null,"Организация:","МУНИЦИПАЛЬНОЕ ПРЕДПРИЯТИЕ \"ВОДОКАНАЛ ГОРОДА РЯЗАНИ\"",null,null,null,"Коды* по ОКПО","03219667"]
[null,null,"Наименование филиала:     "]
[null,null,"ИНН:","6227004811"]
[null,null,"КПП:","623401001"]
[null,null,"Вид деятельности:","Холодное водоснабжение; Водоотведение",null,null,null,"Коды* по ОКВЭД","41.00.2"]
[null,null,"Организационно-правовая форма/форма собственности:","МУНИЦИПАЛЬНОЕ ПРЕДПРИЯТИЕ \"ВОДОКАНАЛ ГОРОДА РЯЗАНИ\"","/","муниципальная собственность",null,"Коды* по ОКОПФ/ОКФС ","14","42"]
[null,null,"Единица измерения:","тыс.руб.",null,null,null,"Коды* по ОКЕИ","384"]
[]
[]
[null,null,"Муниципальный район","Город Рязань"]
[]
[null,null,"Муниципальное образование","Город Рязань"]
[]
[null,null,"ОКТМО","61701000"]
[]
[null,null,"Адрес организации"]
[null,null,"Юридический адрес:","390027, ОБЛ РЯЗАНСКАЯ, Г РЯЗАНЬ, Ш КАСИМОВСКОЕ, д.9"]
[null,null,"Почтовый адрес:","390000, Рязанская Область, Рязань Город, Касимовское Шоссе, д.9"]
[]
[null,null,"Руководитель"]
[null,null,"Фамилия, имя, отчество:","Штефан Олег Борисович"]
[null,null,"(код) номер телефона:","(4912) 41 00 10",null,null,null,"* Расшифровки всех сокращений и ссылки приведены на листе \"Инструкция\""]
[]
[null,null,"Главный бухгалтер"]
[null,null,"Фамилия, имя, отчество:","Куранова Наталия Александровна"]
[null,null,"(код) номер телефона:","(4912) 41 80 48"]
[]
[null,null,"Должностное лицо, ответственное за составление формы"]
[null,null,"Фамилия, имя, отчество:","Оболенцева Екатерина Николаевна"]
[null,null,"Должность:","начальние планово-экономического отдела"]
[null,null,"(код) номер телефона:","(4912) 41 02 13"]
[null,null,"e-mail:","otn@vkrzn.ru"]
[]
[null,null,"Дата составления документа",{"$f":"TODAY()","v":"2017-04-19"}]

{"sheet":"стр 1-2","index":4,"n_rows":57,"n_cols":14,"rows_kept":57,"cut":false,"hidden":false,"merged":[[12,7,12,9],[12,10,12,12],[7,3,7,13],[10,4,11,4],[10,5,11,5],[10,6,11,6],[10,7,11,9],[10,10,11,12]]}
[]
[]
[]
[]
[]
[]
[null,null,null,null,null,null,null,null,null,null,null,null,null,"Форма 0710004 с. 1-2"]
[null,null,null,"Отчет о движении денежных средств"]
[]
[null,null,null,null,null,null,null,null,null,null,null,null,{"$f":"IF(unit=\"\",\"\",unit)","v":"тыс.руб."}]
[null,null,null,null,"№ п/п","Наименование показателя","Код строки",{"$f":"\"За \"&IF(OR(god=\"\",_prd2=\"\"),\"отчётный период\",IF(_prd2=\"год\",\" \"&god&\" год\",_prd2&\" \"&god&\" года\"))","v":"За  2016 год"},null,null,{"$f":"\"За \"&IF(OR(god=\"\",_prd2=\"\"),\"период предыдущего года, аналогичный отчётному периоду\",IF(_prd2=\"год\",\" \"&god-1&\" год\",_prd2&\" \"&god-1&\" года\"))","v":"За  2015 год"}]
[]
[null,null,null,null,1,"2","3","4",null,null,"5"]
[null,null,null,null,"1","Денежные потоки от текущих операций"]
[null,null,null,null,"1.1","Поступления - всего, в том числе:",4110,{"$f":"IF((SUMIF(H16:H19,\"\",I16:I19)-SUMIF(H16:H19,\"(\",I16:I19))<0,\"(\",\"\")","v":""},{"$f":"ABS(SUMIF(H16:H19,\"\",I16:I19)-SUMIF(H16:H19,\"(\",I16:I19))","v":1285888},{"$f":"IF(H15=\"(\",\")\",\"\")","v":""},{"$f":"IF((SUMIF(K16:K19,\"\",L16:L19)-SUMIF(K16:K19,\"(\",L16:L19))<0,\"(\",\"\")","v":""},{"$f":"ABS(SUMIF(K16:K19,\"\",L16:L19)-SUMIF(K16:K19,\"(\",L16:L19))","v":1129458},{"$f":"IF(K15=\"(\",\")\",\"\")","v":""}]
[null,null,null,null,"1.1.1","от продажи продукции, товаров, работ и услуг",4111,null,1271302,null,null,1112299]
[null,null,null,null,"1.1.2","арендных платежей, лицензионных платежей, роялти, комиссионных и иных аналогичных платежей",4112]
[null,null,null,null,"1.1.3","от перепродажи финансовых вложений",4113]
[null,null,null,null,"1.1.4","прочие поступления","4119",null,14586,null,null,17159]
[null,null,null,null,"1.2","Платежи - всего, в том числе:",4120,"(",{"$f":"SUM(I21:I25)","v":1303011},")","(",{"$f":"SUM(L21:L25)","v":1103781},")"]
[null,null,null,null,"1.2.1","поставщикам (подрядчикам) за сырье, материалы, работы, услуги",4121,"(",752560,")","(",610836,")"]
[null,null,null,null,"1.2.2","в связи с оплатой труда работников",4122,"(",465434,")","(",424092,")"]
[null,null,null,null,"1.2.3","процентов по долговым обязательствам",4123,"(",null,")","(",2738,")"]
[null,null,null,null,"1.2.4","налога на прибыль организаций",4124,"(",null,")","(",null,")"]
[null,null,null,null,"1.2.5","прочие платежи","4129","(",85017,")","(",66115,")"]
[null,null,null,null,"1.3","Сальдо денежных потоков от текущих операций",4100,{"$f":"IF((IF(H15=\"(\",-I15,I15)+IF(H20=\"(\",-I20,I20))<0,\"(\",\"\")","v":"("},{"$f":"ABS(IF(H15=\"(\",-I15,I15)+IF(H20=\"(\",-I20,I20))","v":17123},{"$f":"IF(H26=\"(\",\")\",\"\")","v":")"},{"$f":"IF((IF(K15=\"(\",-L15,L15)+IF(K20=\"(\",-L20,L20))<0,\"(\",\"\")","v":""},{"$f":"ABS(IF(K15=\"(\",-L15,L15)+IF(K20=\"(\",-L20,L20))","v":25677},{"$f":"IF(K26=\"(\",\")\",\"\")","v":""}]
[null,null,null,null,"2","Денежные потоки от инвестиционных операций"]
[null,null,null,null,"2.1","Поступления - всего, в том числе:",4210,{"$f":"IF((SUMIF(H29:H33,\"\",I29:I33)-SUMIF(H29:H33,\"(\",I29:I33))<0,\"(\",\"\")","v":""},{"$f":"ABS(SUMIF(H29:H33,\"\",I29:I33)-SUMIF(H29:H33,\"(\",I29:I33))","v":100657},{"$f":"IF(H28=\"(\",\")\",\"\")","v":""},{"$f":"IF((SUMIF(K29:K33,\"\",L29:L33)-SUMIF(K29:K33,\"(\",L29:L33))<0,\"(\",\"\")","v":""},{"$f":"ABS(SUMIF(K29:K33,\"\",L29:L33)-SUMIF(K29:K33,\"(\",L29:L33))","v":159997},{"$f":"IF(K28=\"(\",\")\",\"\")","v":""}]
[null,null,null,null,"2.1.1","от продажи внеоборотных активов (кроме финансовых вложений)",4211]
[null,null,null,null,"2.1.2","от продажи акций других организаций (долей участия)",4212]
[null,null,null,null,"2.1.3","от возврата предоставленных займов, от продажи долговых ценных бумаг (прав требования денежных средств к другим лицам)",4213]
[null,null,null,null,"2.1.4","дивидендов, процентов по долговым финансовым вложениям и аналогичных поступлений от долевого участия в других организациях",4214]
[null,null,null,null,"2.1.5","прочие поступления","4219",null,100657,null,null,159997]
[null,null,null,null,"2.2","Платежи - всего, в том числе:",4220,"(",{"$f":"SUM(I35:I39)","v":91651},")","(",{"$f":"SUM(L35:L39)","v":172036},")"]
[null,null,null,null,"2.2.1","в связи с приобретением, созданием, модернизацией, реконструкцией и подготовкой к использованию внеоборотных активов",4221,"(",65950,")","(",140837,")"]
[null,null,null,null,"2.2.2","в связи с приобретением акций других организаций (долей участия)",4222,"(",null,")","(",null,")"]
[null,null,null,null,"2.2.3","в связи с приобретением долговых ценных бумаг (прав требования денежных средств к другим лицам), предоставление займов другим лицам",4223,"(",null,")","(",null,")"]
[null,null,null,null,"2.2.4","процентов по долговым обязательствам, включаемым в стоимость инвестиционного актива",4224,"(",null,")","(",null,")"]
[null,null,null,null,"2.2.5","прочие платежи","4229","(",25701,")","(",31199,")"]
[null,null,null,null,"2.3","Сальдо денежных потоков от инвестиционных операций",4200,{"$f":"IF((IF(H28=\"(\",-I28,I28)+IF(H34=\"(\",-I34,I34))<0,\"(\",\"\")","v":""},{"$f":"ABS(IF(H28=\"(\",-I28,I28)+IF(H34=\"(\",-I34,I34))","v":9006},{"$f":"IF(H40=\"(\",\")\",\"\")","v":""},{"$f":"IF((IF(K28=\"(\",-L28,L28)+IF(K34=\"(\",-L34,L34))<0,\"(\",\"\")","v":"("},{"$f":"ABS(IF(K28=\"(\",-L28,L28)+IF(K34=\"(\",-L34,L34))","v":12039},{"$f":"IF(K40=\"(\",\")\",\"\")","v":")"}]
[null,null,null,null,"3","Денежные потоки от финансовых операций"]
[null,null,null,null,"3.1","Поступления - всего, в том числе:",4310,{"$f":"IF((SUMIF(H43:H47,\"\",I43:I47)-SUMIF(H43:H47,\"(\",I43:I47))<0,\"(\",\"\")","v":""},{"$f":"ABS(SUMIF(H43:H47,\"\",I43:I47)-SUMIF(H43:H47,\"(\",I43:I47))","v":0},{"$f":"IF(H42=\"(\",\")\",\"\")","v":""},{"$f":"IF((SUMIF(K43:K47,\"\",L43:L47)-SUMIF(K43:K47,\"(\",L43:L47))<0,\"(\",\"\")","v":""},{"$f":"ABS(SUMIF(K43:K47,\"\",L43:L47)-SUMIF(K43:K47,\"(\",L43:L47))","v":0},{"$f":"IF(K42=\"(\",\")\",\"\")","v":""}]
[null,null,null,null,"3.1.1","получение кредитов и займов",4311]
[null,null,null,null,"3.1.2","денежных вкладов собственников (участников)",4312]
[null,null,null,null,"3.1.3","от выпуска акций, увеличения долей участия",4313]
[null,null,null,null,"3.1.4","от выпуска облигаций, векселей и других долговых ценных бумаг и др.",4314]
[null,null,null,null,"3.1.5","прочие поступления","4319"]
[null,null,null,null,"3.2","Платежи - всего, в том числе:",4320,"(",{"$f":"SUM(I49:I52)","v":0},")","(",{"$f":"SUM(L49:L52)","v":35500},")"]
[null,null,null,null,"3.2.1","собственникам (участникам) в связи с выкупом у них акций (долей участия) организации или их выходом из состава участников","4321","(",null,")","(",null,")"]
[null,null,null,null,"3.2.2","на уплату дивидендов и иных платежей по распределению прибыли в пользу собственников (участников)","4322","(",null,")","(",null,")"]
[null,null,null,null,"3.2.3","в связи с погашением (выкупом) векселей и других долговых ценных бумаг, возврат кредитов и займов","4323","(",0,")","(",35500,")"]
[null,null,null,null,"3.2.4","прочие платежи","4329","(",null,")","(",null,")"]
[null,null,null,null,"3.3","Сальдо денежных потоков от финансовых операций","4300",{"$f":"IF((IF(H42=\"(\",-I42,I42)+IF(H48=\"(\",-I48,I48))<0,\"(\",\"\")","v":""},{"$f":"ABS(IF(H42=\"(\",-I42,I42)+IF(H48=\"(\",-I48,I48))","v":0},{"$f":"IF(H53=\"(\",\")\",\"\")","v":""},{"$f":"IF((IF(K42=\"(\",-L42,L42)+IF(K48=\"(\",-L48,L48))<0,\"(\",\"\")","v":"("},{"$f":"ABS(IF(K42=\"(\",-L42,L42)+IF(K48=\"(\",-L48,L48))","v":35500},{"$f":"IF(K53=\"(\",\")\",\"\")","v":")"}]
[null,null,null,null,"4","Сальдо денежных потоков за отчетный период","4400",{"$f":"IF((IF(H26=\"(\",-I26,I26)+IF(H40=\"(\",-I40,I40)+IF(H53=\"(\",-I53,I53))<0,\"(\",\"\")","v":"("},{"$f":"ABS(IF(H26=\"(\",-I26,I26)+IF(H40=\"(\",-I40,I40)+IF(H53=\"(\",-I53,I53))","v":8117},{"$f":"IF(H54=\"(\",\")\",\"\")","v":")"},{"$f":"IF((IF(K26=\"(\",-L26,L26)+IF(K40=\"(\",-L40,L40)+IF(K53=\"(\",-L53,L53))<0,\"(\",\"\")","v":"("},{"$f":"ABS(IF(K26=\"(\",-L26,L26)+IF(K40=\"(\",-L40,L40)+IF(K53=\"(\",-L53,L53))","v":21862},{"$f":"IF(K54=\"(\",\")\",\"\")","v":")"}]
[null,null,null,null,"5","Остаток денежных средств и денежных эквивалентов на начало отчетного периода","4450",null,30778,null,null,52640]
[null,null,null,null,"6","Остаток денежных средств и денежных эквивалентов на конец отчетного периода","4500",{"$f":"IF((IF(H54=\"(\",-I54,I54)+IF(H55=\"(\",-I55,I55)+IF(H57=\"(\",-I57,I57))<0,\"(\",\"\")","v":""},{"$f":"ABS(IF(H54=\"(\",-I54,I54)+IF(H55=\"(\",-I55,I55)+IF(H57=\"(\",-I57,I57))","v":22661},{"$f":"IF(H56=\"(\",\")\",\"\")","v":""},{"$f":"IF((IF(K54=\"(\",-L54,L54)+IF(K55=\"(\",-L55,L55)+IF(K57=\"(\",-L57,L57))<0,\"(\",\"\")","v":""},{"$f":"ABS(IF(K54=\"(\",-L54,L54)+IF(K55=\"(\",-L55,L55)+IF(K57=\"(\",-L57,L57))","v":30778},{"$f":"IF(K56=\"(\",\")\",\"\")","v":""}]
[null,null,null,null,"7","Величина влияния изменений курса иностранной валюты по отношению к рублю","4490"]

{"sheet":"Расшифровка показателей","index":5,"n_rows":54,"n_cols":14,"rows_kept":54,"cut":false,"hidden":false,"merged":[[7,3,7,13],[10,7,10,9],[10,10,10,12],[11,7,11,9],[11,10,11,12]]}
[]
["Амурская область"]
[]
[]
[]
[]
[null,null,null,null,null,null,null,null,null,null,null,null,null,"Форма 0710004 с. 3"]
[null,null,null,"Расшифровка отдельных показателей"]
[]
[null,null,null,null,null,null,null,null,null,null,null,null,{"$f":"IF(unit=\"\",\"\",unit)","v":"тыс.руб."}]
[null,null,null,null,"№ п/п","Пассив","Код строки",{"$f":"\"За \"&IF(OR(god=\"\",_prd2=\"\"),\"отчётный период\",IF(_prd2=\"год\",\" \"&god&\" год\",_prd2&\" \"&god&\" года\"))","v":"За  2016 год"},null,null,{"$f":"\"За \"&IF(OR(god=\"\",_prd2=\"\"),\"аналогичный период предыдущего года\",IF(_prd2=\"год\",\" \"&god-1&\" год\",_prd2&\" \"&god-1&\" года\"))","v":"За  2015 год"}]
[null,null,null,null,1,"2","3","4",null,null,"5"]
[null,null,null,null,"1","Прочие поступления от текущих операций (стр. 4119), в том числе:",null,{"$f":"IF('стр 1-2'!H19=\"(\",\"(\",\"\")","v":""},{"$f":"'стр 1-2'!I19","v":14586},{"$f":"IF(flagParenthesis_Indicators_1=\"(\",\")\",\"\")","v":""},{"$f":"IF('стр 1-2'!K19=\"(\",\"(\",\"\")","v":""},{"$f":"'стр 1-2'!L19","v":17159},{"$f":"IF(flagParenthesis_Indicators_2=\"(\",\")\",\"\")","v":""}]
[null,null,null,null,"1.1",null,"41191"]
[null,null,null,null,"1.2",null,"41192"]
[null,null,null,null,"1.3",null,"41193"]
[null,null,null,null,"1.4",null,"41194"]
[null,null,null,null,"1.5",null,"41195"]
[null,null,null,null,null,"Добавить строку"]
[null,null,null,null,"2","На прочие платежи от текущих операций (стр. 4129), в том числе:",null,{"$f":"IF('стр 1-2'!H25=\"(\",\"(\",\"\")","v":"("},{"$f":"'стр 1-2'!I25","v":85017},{"$f":"IF(H20=\"(\",\")\",\"\")","v":")"},{"$f":"IF('стр 1-2'!K25=\"(\",\"(\",\"\")","v":"("},{"$f":"'стр 1-2'!L25","v":66115},{"$f":"IF(K20=\"(\",\")\",\"\")","v":")"}]
[null,null,null,null,"2.1",null,"41291","(",null,")","(",null,")"]
[null,null,null,null,"2.2",null,"41292","(",null,")","(",null,")"]
[null,null,null,null,"2.3",null,"41293","(",null,")","(",null,")"]
[null,null,null,null,"2.4",null,"41294","(",null,")","(",null,")"]
[null,null,null,null,"2.5",null,"41295","(",null,")","(",null,")"]
[null,null,null,null,null,"Добавить строку"]
[null,null,null,null,"3","Прочие поступления от инвестиционных операций (стр. 4219), в том числе:",null,{"$f":"IF('стр 1-2'!H33=\"(\",\"(\",\"\")","v":""},{"$f":"'стр 1-2'!I33","v":100657},{"$f":"IF(H27=\"(\",\")\",\"\")","v":""},{"$f":"IF('стр 1-2'!K33=\"(\",\"(\",\"\")","v":""},{"$f":"'стр 1-2'!L33","v":159997},{"$f":"IF(K27=\"(\",\")\",\"\")","v":""}]
[null,null,null,null,"3.1",null,"42191"]
[null,null,null,null,"3.2",null,"42192"]
[null,null,null,null,"3.3",null,"42193"]
[null,null,null,null,"3.4",null,"42194"]
[null,null,null,null,"3.5",null,"42195"]
[null,null,null,null,null,"Добавить строку"]
[null,null,null,null,"4","На прочие платежи от инвестиционных операций (стр. 4229), в том числе:",null,{"$f":"IF('стр 1-2'!H39=\"(\",\"(\",\"\")","v":"("},{"$f":"'стр 1-2'!I39","v":25701},{"$f":"IF(H34=\"(\",\")\",\"\")","v":")"},{"$f":"IF('стр 1-2'!K39=\"(\",\"(\",\"\")","v":"("},{"$f":"'стр 1-2'!L39","v":31199},{"$f":"IF(K34=\"(\",\")\",\"\")","v":")"}]
[null,null,null,null,"4.1",null,"42291","(",null,")","(",null,")"]
[null,null,null,null,"4.2",null,"42292","(",null,")","(",null,")"]
[null,null,null,null,"4.3",null,"42293","(",null,")","(",null,")"]
[null,null,null,null,"4.4",null,"42294","(",null,")","(",null,")"]
[null,null,null,null,"4.5",null,"42295","(",null,")","(",null,")"]
[null,null,null,null,null,"Добавить строку"]
[null,null,null,null,"5","Другие поступления от финансовых операций (стр. 4319), в том числе:",null,{"$f":"IF('стр 1-2'!H47=\"(\",\"(\",\"\")","v":""},{"$f":"'стр 1-2'!I47","v":0},{"$f":"IF(H41=\"(\",\")\",\"\")","v":""},{"$f":"IF('стр 1-2'!K47=\"(\",\"(\",\"\")","v":""},{"$f":"'стр 1-2'!L47","v":0},{"$f":"IF(K41=\"(\",\")\",\"\")","v":""}]
[null,null,null,null,"5.1",null,"43191"]
[null,null,null,null,"5.2",null,"43192"]
[null,null,null,null,"5.3",null,"43193"]
[null,null,null,null,"5.4",null,"43194"]
[null,null,null,null,"5.5",null,"43195"]
[null,null,null,null,null,"Добавить строку"]
[null,null,null,null,"6","На прочие платежи от финансовых операций (стр. 4329), в том числе:",null,{"$f":"IF('стр 1-2'!H52=\"(\",\"(\",\"\")","v":"("},{"$f":"'стр 1-2'!I52","v":0},{"$f":"IF(H48=\"(\",\")\",\"\")","v":")"},{"$f":"IF('стр 1-2'!K52=\"(\",\"(\",\"\")","v":"("},{"$f":"'стр 1-2'!L52","v":0},{"$f":"IF(K48=\"(\",\")\",\"\")","v":")"}]
[null,null,null,null,"6.1",null,"43291","(",null,")","(",null,")"]
[null,null,null,null,"6.2",null,"43292","(",null,")","(",null,")"]
[null,null,null,null,"6.3",null,"43293","(",null,")","(",null,")"]
[null,null,null,null,"6.4",null,"43294","(",null,")","(",null,")"]
[null,null,null,null,"6.5",null,"43295","(",null,")","(",null,")"]
[null,null,null,null,null,"Добавить строку"]

{"sheet":"Комментарии","index":6,"n_rows":8,"n_cols":4,"rows_kept":8,"cut":false,"hidden":false,"merged":[[7,3,7,5]]}
[]
["Амурская область"]
[]
[]
[]
[]
[]
[null,null,null,"КОММЕНТАРИИ"]

{"sheet":"Проверка","index":7,"n_rows":13,"n_cols":7,"rows_kept":13,"cut":false,"hidden":false,"merged":[[9,4,9,6]]}
[]
[]
[]
[]
[]
[]
[]
[]
[]
[null,null,null,null,"Результат проверки"]
[]
[null,null,null,null,"Ссылка","Причина","Статус ошибки"]
[null,null,null,null,"1","2","3"]

{"sheet":"AllSheetsInThisWorkbook","index":8,"n_rows":29,"n_cols":2,"rows_kept":29,"cut":false,"hidden":true,"merged":[]}
["Расчетные листы","Скрытые листы"]
["Инструкция","AllSheetsInThisWorkbook"]
["Титульный","et_union"]
["стр 1-2","TEHSHEET"]
["Расшифровка показателей","REESTR_ORG"]
["Комментарии","REESTR_FILTERED"]
["Проверка","REESTR_MO"]
[null,"modHyperlink"]
[null,"modChange"]
[null,"modPROV"]
[null,"modTitleSheetHeaders"]
[null,"modServiceModule"]
[null,"modCommandButton"]
[null,"modReestr"]
[null,"modClassifierValidate"]
[null,"modInfo"]
[null,"modfrmReestr"]
[null,"modfrmDateChoose"]
[null,"modDblClick"]
[null,"Паспорт"]
[null,"modUpdTemplMain"]
[null,"modRegionSelectSub"]
[null,"modThisWorkbook"]
[null,"modReestrMO"]
[null,"modSheetMain01"]
[null,"modSheetMain02"]
[null,"modSheetMain03"]
[null,"modSheetMain04"]
[null,"modSheetMain05"]

{"sheet":"et_union","index":9,"n_rows":18,"n_cols":13,"rows_kept":18,"cut":false,"hidden":true,"merged":[]}
[]
["add_INCOME_CONSUMPTION_range"]
[]
[]
[]
[]
["add_GAINS_AND_LOSSES_range"]
[]
[]
[]
[]
["add_INDICATORS_range"]
[]
[]
[]
["add_INDICATORS_range_2"]
[]
[null,null,null,null,null,null,null,"(",null,")","(",null,")"]

{"sheet":"TEHSHEET","index":10,"n_rows":86,"n_cols":10,"rows_kept":86,"cut":false,"hidden":true,"merged":[[0,0,1,0]]}
["регион","Логика","Кварталы","Года","Единица измерения","Месяц-текст","Месяц-число","День-число",null,"XML_ORG_LIST_TAG_NAMES"]
[null,"да","I квартал",2011,"тыс.руб.","январь","01","01",null,"NSRF"]
["Алтайский край","нет","I полугодие",2012,"млн.руб.","февраль","02","02",null,"MR_NAME"]
["Амурская область",null,"9 месяцев",2013,null,"март","03","03",null,"OKTMO_MR_NAME"]
["Архангельская область",null,"год",2014,"Единица измерения для листа \"Доходы-Расходы\"","апрель","04","04",null,"MO_NAME"]
["Астраханская область","Выбранный регион",null,2015,"руб.","май","05","05",null,"OKTMO_NAME"]
["Белгородская область",0,null,null,"тыс.руб.","июнь","06","06",null,"ORG_NAME"]
["Брянская область",null,null,null,"млн.руб.","июль","07","07",null,"INN_NAME"]
["Владимирская область",null,null,null,null,"август","08","08",null,"KPP_NAME"]
["Волгоградская область",null,null,null,null,"сентябрь","09","09"]
["Вологодская область",null,null,null,null,"октябрь",10,10,null,"XML_MR_MO_OKTMO_LIST_TAG_NAMES"]
["Воронежская область",null,null,null,null,"ноябрь",11,11,null,"NSRF"]
["г.Байконур",null,null,null,null,"декабрь",12,12,null,"MR_NAME"]
["г. Москва",null,null,null,null,null,null,13,null,"OKTMO_MR_NAME"]
["г.Санкт-Петербург",null,null,null,null,null,null,14,null,"MO_NAME"]
["Еврейская автономная область",null,null,null,null,null,null,15,null,"OKTMO_NAME"]
["Забайкальский край",null,null,null,null,null,null,16]
["Ивановская область",null,null,null,null,null,null,17]
["Иркутская область",null,null,null,null,null,null,18]
["Кабардино-Балкарская республика",null,null,null,null,null,null,19]
["Калининградская область",null,null,null,null,null,null,20]
["Калужская область",null,null,null,null,null,null,21]
["Камчатский край",null,null,null,null,null,null,22]
["Карачаево-Черкесская республика",null,null,null,null,null,null,23]
["Кемеровская область",null,null,null,null,null,null,24]
["Кировская область",null,null,null,null,null,null,25]
["Костромская область",null,null,null,null,null,null,26]
["Краснодарский край",null,null,null,null,null,null,27]
["Красноярский край",null,null,null,null,null,null,28]
["Курганская область",null,null,null,null,null,null,29]
["Курская область",null,null,null,null,null,null,30]
["Ленинградская область",null,null,null,null,null,null,31]
["Липецкая область"]
["Магаданская область"]
["Московская область"]
["Мурманская область"]
["Ненецкий автономный округ"]
["Нижегородская область"]
["Новгородская область"]
["Новосибирская область"]
["Омская область"]
["Оренбургская область"]
["Орловская область"]
["Пензенская область"]
["Пермский край"]
["Приморский край"]
["Псковская область"]
["Республика Адыгея"]
["Республика Алтай"]
["Республика Башкортостан"]
["Республика Бурятия"]
["Республика Дагестан"]
["Республика Ингушетия"]
["Республика Калмыкия"]
["Республика Карелия"]
["Республика Коми"]
["Республика Марий Эл"]
["Республика Мордовия"]
["Республика Саха (Якутия)"]
["Республика Северная Осетия-Алания"]
["Республика Татарстан"]
["Республика Тыва"]
["Республика Хакасия"]
["Ростовская область"]
["Рязанская область"]
["Самарская область"]
["Саратовская область"]
["Сахалинская область"]
["Свердловская область"]
["Смоленская область"]
["Ставропольский край"]
["Тамбовская область"]
["Тверская область"]
["Томская область"]
["Тульская область"]
["Тюменская область"]
["Удмуртская республика"]
["Ульяновская область"]
["Хабаровский край"]
["Ханты-Мансийский автономный округ"]
["Челябинская область"]
["Чеченская республика"]
["Чувашская республика"]
["Чукотский автономный округ"]
["Ямало-Ненецкий автономный округ"]
["Ярославская область"]

{"sheet":"REESTR_ORG","index":11,"n_rows":1,"n_cols":8,"rows_kept":1,"cut":false,"hidden":true,"merged":[]}
["№","МР","МО","МО ОКТМО","ОРГАНИЗАЦИЯ","ИНН","КПП","ВИД ДЕЯТЕЛЬНОСТИ"]

{"sheet":"REESTR_FILTERED","index":12,"n_rows":1,"n_cols":8,"rows_kept":1,"cut":false,"hidden":true,"merged":[]}
["№","МР","МО","МО ОКТМО","ОРГАНИЗАЦИЯ","ИНН","КПП","ВИД ДЕЯТЕЛЬНОСТИ"]

{"sheet":"REESTR_MO","index":13,"n_rows":308,"n_cols":5,"rows_kept":308,"cut":false,"hidden":true,"merged":[]}
["МР","МО","МО_ОКТМО","МР","ИМЯ ДИАПАЗОНА"]
["Александро-Невский муниципальный район","Александро-Невский муниципальный район","61620000","Александро-Невский муниципальный район","MO_LIST_2"]
["Александро-Невский муниципальный район","Александро-Невское","61620151","Город Касимов","MO_LIST_3"]
["Александро-Невский муниципальный район","Благовское","61620405","Город Рязань","MO_LIST_4"]
["Александро-Невский муниципальный район","Борисовское","61620410","Город Сасово","MO_LIST_5"]
["Александро-Невский муниципальный район","Бурминское","61620420","Город Скопин","MO_LIST_6"]
["Александро-Невский муниципальный район","Каширинское","61620450","Ермишинский муниципальный район","MO_LIST_7"]
["Александро-Невский муниципальный район","Ленинское","61620435","Захаровский муниципальный район","MO_LIST_8"]
["Александро-Невский муниципальный район","Нижнеякимецкое","61620445","Кадомский муниципальный район","MO_LIST_9"]
["Александро-Невский муниципальный район","Просеченское","61620460","Касимовский муниципальный район","MO_LIST_10"]
["Город Касимов","Город Касимов","61705000","Клепиковский муниципальный район","MO_LIST_11"]
["Город Рязань","Город Рязань","61701000","Кораблинский муниципальный район","MO_LIST_12"]
["Город Сасово","Город Сасово","61710000","Милославский муниципальный район","MO_LIST_13"]
["Город Скопин","Город Скопин","61715000","Михайловский муниципальный район","MO_LIST_14"]
["Ермишинский муниципальный район","Азеевское","61602405","Пителинский муниципальный район","MO_LIST_15"]
["Ермишинский муниципальный район","Ермишинский муниципальный район","61602000","Пронский муниципальный район","MO_LIST_16"]
["Ермишинский муниципальный район","Ермишинское","61602151","Путятинский муниципальный район","MO_LIST_17"]
["Ермишинский муниципальный район","Мердушинское","61602425","Рыбновский муниципальный район","MO_LIST_18"]
["Ермишинский муниципальный район","Надежкинское","61602430","Ряжский муниципальный район","MO_LIST_19"]
["Ермишинский муниципальный район","Нарминское","61602435","Рязанский муниципальный район","MO_LIST_20"]
["Ермишинский муниципальный район","Савватемское","61602440","Сапожковский муниципальный район","MO_LIST_21"]
["Захаровский муниципальный район","Безлыченское","61604412","Сараевский муниципальный район","MO_LIST_22"]
["Захаровский муниципальный район","Большекоровинское","61604415","Сасовский муниципальный район","MO_LIST_23"]
["Захаровский муниципальный район","Добро-Пчельское","61604430","Скопинский муниципальный район","MO_LIST_24"]
["Захаровский муниципальный район","Елинское","61604432","Спасский муниципальный район","MO_LIST_25"]
["Захаровский муниципальный район","Захаровский муниципальный район","61604000","Старожиловский муниципальный район","MO_LIST_26"]
["Захаровский муниципальный район","Захаровское","61604440","Ухоловский муниципальный район","MO_LIST_27"]
["Захаровский муниципальный район","Плахинское","61604465","Чучковский муниципальный район","MO_LIST_28"]
["Захаровский муниципальный район","Сменовское","61604425","Шацкий муниципальный район","MO_LIST_29"]
["Кадомский муниципальный район","Восходское","61606405","Шиловский муниципальный район","MO_LIST_30"]
["Кадомский муниципальный район","Енкаевское","61606410"]
["Кадомский муниципальный район","Кадомский муниципальный район","61606000"]
["Кадомский муниципальный район","Кадомское","61606151"]
["Кадомский муниципальный район","Котелинское","61606420"]
["Кадомский муниципальный район","Кущапинское","61606430"]
["Касимовский муниципальный район","Ардабьевское","61608403"]
["Касимовский муниципальный район","Ахматовское","61608406"]
["Касимовский муниципальный район","Балушево-Починковское","61608409"]
["Касимовский муниципальный район","Булгаковское","61608439"]
["Касимовский муниципальный район","Гиблицкое","61608418"]
["Касимовский муниципальный район","Гусевское","61608154"]
["Касимовский муниципальный район","Дмитриевское","61608421"]
["Касимовский муниципальный район","Елатомское","61608156"]
["Касимовский муниципальный район","Ермоловское","61608424"]
["Касимовский муниципальный район","Ибердусское","61608430"]
["Касимовский муниципальный район","Касимовский муниципальный район","61608000"]
["Касимовский муниципальный район","Китовское","61608433"]
["Касимовский муниципальный район","Клетинское","61608434"]
["Касимовский муниципальный район","Которовское","61608442"]
["Касимовский муниципальный район","Крутоярское","61608453"]
["Касимовский муниципальный район","Лашманское","61608454"]
["Касимовский муниципальный район","Лощининское","61608471"]
["Касимовский муниципальный район","Новодеревенское","61608456"]
["Касимовский муниципальный район","Овчинниковское","61608459"]
["Касимовский муниципальный район","Первинское","61608462"]
["Касимовский муниципальный район","Погостинское","61608465"]
["Касимовский муниципальный район","Савостьяновское","61608468"]
["Касимовский муниципальный район","Сынтульское","61608160"]
["Касимовский муниципальный район","Токаревское","61608474"]
["Касимовский муниципальный район","Торбаевское","61608412"]
["Касимовский муниципальный район","Шостьинское","61608480"]
["Клепиковский муниципальный район","Алексеевское","61610403"]
["Клепиковский муниципальный район","Болоньское","61610415"]
["Клепиковский муниципальный район","Бусаевское","61610418"]
["Клепиковский муниципальный район","Екшурское","61610451"]
["Клепиковский муниципальный район","Клепиковский муниципальный район","61610000"]
["Клепиковский муниципальный район","Колесниковское","61610448"]
["Клепиковский муниципальный район","Криушинское","61610454"]
["Клепиковский муниципальный район","Макеевское","61610460"]
["Клепиковский муниципальный район","Малаховское","61610463"]
["Клепиковский муниципальный район","Молькинское","61610475"]
["Клепиковский муниципальный район","Ненашкинское","61610487"]
["Клепиковский муниципальный район","Оськинское","61610472"]
["Клепиковский муниципальный район","Спас-Клепиковское","61610101"]
["Клепиковский муниципальный район","Тумское","61610154"]
["Клепиковский муниципальный район","Тюковское","61610484"]
["Клепиковский муниципальный район","Уткинское","61610421"]
["Кораблинский муниципальный район","Бобровинское","61612408"]
["Кораблинский муниципальный район","Кипчаковское","61612424"]
["Кораблинский муниципальный район","Ключанское","61612428"]
["Кораблинский муниципальный район","Ковалинское","61612432"]
["Кораблинский муниципальный район","Кораблинский муниципальный район","61612000"]
["Кораблинский муниципальный район","Кораблинское","61612101"]
["Кораблинский муниципальный район","Молвинослободское","61612456"]
["Кораблинский муниципальный район","Незнановское","61612448"]
["Кораблинский муниципальный район","Пехлецкое","61612460"]
["Кораблинский муниципальный район","Пустотинское","61612464"]
["Кораблинский муниципальный район","Яблоневское","61612484"]
["Милославский муниципальный район","Богородицкое","61615408"]
["Милославский муниципальный район","Большеподовечинское","61615412"]
["Милославский муниципальный район","Горняцкое","61615422"]
["Милославский муниципальный район","Кочуровское","61615428"]
["Милославский муниципальный район","Липяговское","61615432"]
["Милославский муниципальный район","Милославский муниципальный район","61615000"]
["Милославский муниципальный район","Павловское","61615456"]
["Милославский муниципальный район","Центральное","61615160"]
["Милославский муниципальный район","Чернавское","61615472"]
["Милославский муниципальный район","городское поселение Милославское","61615151"]
["Милославский муниципальный район","сельское поселение Милославское","61615444"]
["Михайловский муниципальный район","Виленское","61617406"]
["Михайловский муниципальный район","Голдинское","61617412"]
["Михайловский муниципальный район","Горностаевское","61617415"]
["Михайловский муниципальный район","Грязновское","61617418"]
["Михайловский муниципальный район","Жмуровское","61617421"]
["Михайловский муниципальный район","Ильичевское","61617476"]
["Михайловский муниципальный район","Каморинское","61617433"]
["Михайловский муниципальный район","Красновское","61617439"]
["Михайловский муниципальный район","Михайловский муниципальный район","61617000"]
["Михайловский муниципальный район","Михайловское","61617101"]
["Михайловский муниципальный район","Новопанское","61617448"]
["Михайловский муниципальный район","Октябрьское","61617154"]
["Михайловский муниципальный район","Печерниковское","61617451"]
["Михайловский муниципальный район","Поярковское","61617457"]
["Михайловский муниципальный район","Рачатниковское","61617460"]
["Михайловский муниципальный район","Слободское","61617467"]
["Михайловский муниципальный район","Стрелецко-Высельское","61617470"]
["Михайловский муниципальный район","Трепольское","61617473"]
["Михайловский муниципальный район","Чуриковское","61617485"]
["Михайловский муниципальный район","Щетининское","61617491"]
["Пителинский муниципальный район","Ермо-Николаевское","61623420"]
["Пителинский муниципальный район","Нестеровское","61623425"]
["Пителинский муниципальный район","Пеньковское","61623435"]
["Пителинский муниципальный район","Пителинский муниципальный район","61623000"]
["Пителинский муниципальный район","Пителинское","61623151"]
["Пителинский муниципальный район","Потапьевское","61623450"]
["Пронский муниципальный район","Малинищинское","61625435"]
["Пронский муниципальный район","Мамоновское","61625440"]
["Пронский муниципальный район","Новомичуринское","61625114"]
["Пронский муниципальный район","Октябрьское","61625445"]
["Пронский муниципальный район","Орловское","61625450"]
["Пронский муниципальный район","Погореловское","61625455"]
["Пронский муниципальный район","Пронский муниципальный район","61625000"]
["Пронский муниципальный район","Пронское","61625151"]
["Пронский муниципальный район","Тырновское","61625405"]
["Путятинский муниципальный район","Береговское","61626406"]
["Путятинский муниципальный район","Большеекатериновское","61626403"]
["Путятинский муниципальный район","Карабухинское","61626424"]
["Путятинский муниципальный район","Песочинское","61626432"]
["Путятинский муниципальный район","Путятинский муниципальный район","61626000"]
["Путятинский муниципальный район","Путятинское","61626436"]
["Путятинский муниципальный район","Строевское","61626412"]
["Рыбновский муниципальный район","Алешинское","61627404"]
["Рыбновский муниципальный район","Баграмовское","61627406"]
["Рыбновский муниципальный район","Батуринское","61627408"]
["Рыбновский муниципальный район","Вакинское","61627416"]
["Рыбновский муниципальный район","Глебковское","61627418"]
["Рыбновский муниципальный район","Истобниковское","61627424"]
["Рыбновский муниципальный район","Кузьминское","61627436"]
["Рыбновский муниципальный район","Пионерское","61627476"]
["Рыбновский муниципальный район","Пощуповское","61627456"]
["Рыбновский муниципальный район","Рыбновский муниципальный район","61627000"]
["Рыбновский муниципальный район","Рыбновское","61627101"]
["Рыбновский муниципальный район","Селецкое","61627460"]
["Рыбновский муниципальный район","Ходынинское","61627472"]
["Рыбновский муниципальный район","Чурилковское","61627464"]
["Ряжский муниципальный район","Алешинское","61630405"]
["Ряжский муниципальный район","Дегтянское","61630415"]
["Ряжский муниципальный район","Журавинское","61630420"]
["Ряжский муниципальный район","Петровское","61630450"]
["Ряжский муниципальный район","Поплевинское","61630460"]
["Ряжский муниципальный район","Ряжский муниципальный район","61630000"]
["Ряжский муниципальный район","Ряжское","61630101"]
["Рязанский муниципальный район","Варсковское","61634402"]
["Рязанский муниципальный район","Высоковское","61634409"]
["Рязанский муниципальный район","Вышгородское","61634412"]
["Рязанский муниципальный район","Вышетравинское","61634415"]
["Рязанский муниципальный район","Дубровическое","61634427"]
["Рязанский муниципальный район","Дядьковское","61634430"]
["Рязанский муниципальный район","Екимовское","61634433"]
["Рязанский муниципальный район","Заборьевское","61634436"]
["Рязанский муниципальный район","Заокское","61634439"]
["Рязанский муниципальный район","Искровское","61634485"]
["Рязанский муниципальный район","Кораблинское","61634451"]
["Рязанский муниципальный район","Листвянское","61634457"]
["Рязанский муниципальный район","Льговское","61634460"]
["Рязанский муниципальный район","Мурминское","61634401"]
["Рязанский муниципальный район","Окское","61634475"]
["Рязанский муниципальный район","Подвязьевское","61634478"]
["Рязанский муниципальный район","Полянское","61634483"]
["Рязанский муниципальный район","Ровновское","61634490"]
["Рязанский муниципальный район","Рязанский муниципальный район","61634000"]
["Рязанский муниципальный район","Семеновское","61634495"]
["Рязанский муниципальный район","Турлатовское","61634496"]
["Рязанский муниципальный район","Тюшевское","61634498"]
["Сапожковский муниципальный район","Березниковское","61637435"]
["Сапожковский муниципальный район","Канинское","61637410"]
["Сапожковский муниципальный район","Михеевское","61637405"]
["Сапожковский муниципальный район","Морозово-Борковское","61637430"]
["Сапожковский муниципальный район","Сапожковский муниципальный район","61637000"]
["Сапожковский муниципальный район","Сапожковское","61637151"]
["Сараевский муниципальный район","Алексеевское","61640403"]
["Сараевский муниципальный район","Борецкое","61640412"]
["Сараевский муниципальный район","Бычковское","61640415"]
["Сараевский муниципальный район","Высоковское","61640424"]
["Сараевский муниципальный район","Желобовское","61640430"]
["Сараевский муниципальный район","Кривское","61640436"]
["Сараевский муниципальный район","Можарское","61640442"]
["Сараевский муниципальный район","Муравлянское","61640448"]
["Сараевский муниципальный район","Напольновское","61640451"]
["Сараевский муниципальный район","Новобокинское","61640454"]
["Сараевский муниципальный район","Сараевский муниципальный район","61640000"]
["Сараевский муниципальный район","Сараевское","61640151"]
["Сараевский муниципальный район","Сысоевское","61640469"]
["Сараевский муниципальный район","Телятниковское","61640472"]
["Сараевский муниципальный район","Ягодновское","61640481"]
["Сасовский муниципальный район","Агломазовское","61642403"]
["Сасовский муниципальный район","Алешинское","61642406"]
["Сасовский муниципальный район","Батьковское","61642415"]
["Сасовский муниципальный район","Берестянское","61642408"]
["Сасовский муниципальный район","Гавриловское","61642418"]
["Сасовский муниципальный район","Глядковское","61642420"]
["Сасовский муниципальный район","Демушкинское","61642466"]
["Сасовский муниципальный район","Каргашинское","61642424"]
["Сасовский муниципальный район","Кустаревское","61642433"]
["Сасовский муниципальный район","Малостуденецкое","61642439"]
["Сасовский муниципальный район","Нижнемальцевское","61642448"]
["Сасовский муниципальный район","Новоберезовское","61642454"]
["Сасовский муниципальный район","Придорожное","61642464"]
["Сасовский муниципальный район","Сасовский муниципальный район","61642000"]
["Сасовский муниципальный район","Сотницынское","61642470"]
["Сасовский муниципальный район","Трудолюбовское","61642463"]
["Скопинский муниципальный район","Вослебовское","61644412"]
["Скопинский муниципальный район","Горловское","61644415"]
["Скопинский муниципальный район","Ильинское","61644430"]
["Скопинский муниципальный район","Корневское","61644445"]
["Скопинский муниципальный район","Павелецкое","61644154"]
["Скопинский муниципальный район","Побединское","61644157"]
["Скопинский муниципальный район","Полянское","61644478"]
["Скопинский муниципальный район","Скопинский муниципальный район","61644000"]
["Скопинский муниципальный район","Успенское","61644488"]
["Скопинский муниципальный район","Шелемишевское","61644496"]
["Спасский муниципальный район","Выжелесское","61646409"]
["Спасский муниципальный район","Гавриловское","61646415"]
["Спасский муниципальный район","Заречинское","61646434"]
["Спасский муниципальный район","Ижевское","61646443"]
["Спасский муниципальный район","Исадское","61646446"]
["Спасский муниципальный район","Кирицкое","61646452"]
["Спасский муниципальный район","Киструсское","61646488"]
["Спасский муниципальный район","Кутуковское","61646455"]
["Спасский муниципальный район","Лакашинское","61646458"]
["Спасский муниципальный район","Михальское","61646461"]
["Спасский муниципальный район","Панинское","61646473"]
["Спасский муниципальный район","Перкинское","61646476"]
["Спасский муниципальный район","Собчаковское","61646485"]
["Спасский муниципальный район","Спасск-Рязанское","61646101"]
["Спасский муниципальный район","Спасский муниципальный район","61646000"]
["Спасский муниципальный район","Троицкое","61646493"]
["Спасский муниципальный район","Федотьевское","61646498"]
["Старожиловский муниципальный район","Гребневское","61648420"]
["Старожиловский муниципальный район","Гулынское","61648425"]
["Старожиловский муниципальный район","Истьинское","61648435"]
["Старожиловский муниципальный район","Ленинское","61648438"]
["Старожиловский муниципальный район","Мелекшинское","61648440"]
["Старожиловский муниципальный район","Старожиловский муниципальный район","61648000"]
["Старожиловский муниципальный район","Старожиловское","61648151"]
["Старожиловский муниципальный район","Столпянское","61648460"]
["Ухоловский муниципальный район","Калининское","61650430"]
["Ухоловский муниципальный район","Коноплинское","61650440"]
["Ухоловский муниципальный район","Ольховское","61650450"]
["Ухоловский муниципальный район","Смолеевское","61650455"]
["Ухоловский муниципальный район","Ухоловский муниципальный район","61650000"]
["Ухоловский муниципальный район","Ухоловское","61650151"]
["Чучковский муниципальный район","Аладьинское","61653405"]
["Чучковский муниципальный район","Завидовское","61653420"]
["Чучковский муниципальный район","Остро-Пластиковское","61653435"]
["Чучковский муниципальный район","Пертовское","61653440"]
["Чучковский муниципальный район","Ункосовское","61653450"]
["Чучковский муниципальный район","Чучковский муниципальный район","61653000"]
["Чучковский муниципальный район","Чучковское","61653151"]
["Шацкий муниципальный район","Агишевское","61656406"]
["Шацкий муниципальный район","Борковское","61656415"]
["Шацкий муниципальный район","Желанновское","61656418"]
["Шацкий муниципальный район","Каверинское","61656421"]
["Шацкий муниципальный район","Казачинское","61656427"]
["Шацкий муниципальный район","Кермисинское","61656433"]
["Шацкий муниципальный район","Криволуцкое","61656460"]
["Шацкий муниципальный район","Куплинское","61656439"]
["Шацкий муниципальный район","Кучасьевское","61656442"]
["Шацкий муниципальный район","Лесно-Конобеевское","61656445"]
["Шацкий муниципальный район","Лесно-Полянское","61656448"]
["Шацкий муниципальный район","Новосвеженское","61656450"]
["Шацкий муниципальный район","Новочернеевское","61656451"]
["Шацкий муниципальный район","Ольховское","61656454"]
["Шацкий муниципальный район","Печинское","61656457"]
["Шацкий муниципальный район","Польно-Ялтуновское","61656463"]
["Шацкий муниципальный район","Тарадеевское","61656478"]
["Шацкий муниципальный район","Чернослободское","61656484"]
["Шацкий муниципальный район","Шацкий муниципальный район","61656000"]
["Шацкий муниципальный район","Шацкое","61656101"]
["Шацкий муниципальный район","Ямбирнское","61656493"]
["Шиловский муниципальный район","Аделинское","61658403"]
["Шиловский муниципальный район","Борковское","61658475"]
["Шиловский муниципальный район","Боровское","61658415"]
["Шиловский муниципальный район","Ерахтурское","61658424"]
["Шиловский муниципальный район","Желудевское","61658427"]
["Шиловский муниципальный район","Задубровское","61658430"]
["Шиловский муниципальный район","Занино-Починковское","61658445"]
["Шиловский муниципальный район","Ибредское","61658473"]
["Шиловский муниципальный район","Инякинское","61658436"]
["Шиловский муниципальный район","Краснохолмское","61658439"]
["Шиловский муниципальный район","Лесновское","61658157"]
["Шиловский муниципальный район","Мосоловское","61658448"]
["Шиловский муниципальный район","Санское","61658472"]
["Шиловский муниципальный район","Тереховское","61658478"]
["Шиловский муниципальный район","Тимошкинское","61658481"]
["Шиловский муниципальный район","Тырновское","61658484"]
["Шиловский муниципальный район","Шиловский муниципальный район","61658000"]
["Шиловский муниципальный район","Шиловское","61658151"]

{"sheet":"modHyperlink","index":14,"n_rows":0,"n_cols":0,"rows_kept":0,"cut":false,"hidden":true,"merged":[]}

{"sheet":"modChange","index":15,"n_rows":0,"n_cols":0,"rows_kept":0,"cut":false,"hidden":true,"merged":[]}

{"sheet":"modPROV","index":16,"n_rows":0,"n_cols":0,"rows_kept":0,"cut":false,"hidden":true,"merged":[]}

{"sheet":"modTitleSheetHeaders","index":17,"n_rows":0,"n_cols":0,"rows_kept":0,"cut":false,"hidden":true,"merged":[]}

{"sheet":"modServiceModule","index":18,"n_rows":0,"n_cols":0,"rows_kept":0,"cut":false,"hidden":true,"merged":[]}

{"sheet":"modCommandButton","index":19,"n_rows":0,"n_cols":0,"rows_kept":0,"cut":false,"hidden":true,"merged":[]}

{"sheet":"modReestr","index":20,"n_rows":0,"n_cols":0,"rows_kept":0,"cut":false,"hidden":true,"merged":[]}

{"sheet":"modClassifierValidate","index":21,"n_rows":0,"n_cols":0,"rows_kept":0,"cut":false,"hidden":true,"merged":[]}

{"sheet":"modInfo","index":22,"n_rows":0,"n_cols":0,"rows_kept":0,"cut":false,"hidden":true,"merged":[]}

{"sheet":"modfrmReestr","index":23,"n_rows":0,"n_cols":0,"rows_kept":0,"cut":false,"hidden":true,"merged":[]}

{"sheet":"modfrmDateChoose","index":24,"n_rows":0,"n_cols":0,"rows_kept":0,"cut":false,"hidden":true,"merged":[]}

{"sheet":"modDblClick","index":25,"n_rows":0,"n_cols":0,"rows_kept":0,"cut":false,"hidden":true,"merged":[]}

{"sheet":"Паспорт","index":26,"n_rows":71,"n_cols":57,"rows_kept":71,"cut":false,"hidden":true,"merged":[[42,8,42,10],[43,8,43,10],[52,8,52,10],[53,8,53,10],[44,8,44,10],[45,8,45,10],[50,8,50,10],[51,8,51,10],[48,8,48,10],[49,8,49,10],[3,3,3,10],[12,5,12,10],[13,5,13,10],[6,5,6,10],[7,5,7,10],[5,3,5,10],[8,5,8,10],[9,5,9,10],[10,5,10,10],[11,5,11,10],[14,6,14,9],[21,5,21,10],[17,3,17,10],[15,5,15,10],[18,5,18,10],[19,5,19,10],[20,5,20,10],[30,5,30,10],[31,7,31,10],[32,7,32,10],[22,5,22,10],[23,5,23,10],[29,3,29,10],[25,3,25,10],[26,5,26,10],[27,3,27,10],[33,3,33,10],[54,3,54,10],[62,5,62,10],[57,5,57,10],[58,5,58,10],[56,3,56,10],[36,8,36,10],[37,8,37,10],[59,5,59,10],[35,3,35,10],[41,8,41,10],[38,8,38,10],[39,8,39,10],[40,8,40,10],[46,8,46,10],[47,8,47,10],[64,3,64,10],[61,3,61,10],[63,5,63,10],[70,5,70,10],[69,5,69,10],[68,5,68,10],[67,5,67,10],[66,3,66,10]]}
[null,null,null,null,null,null,null,null,null,null,null,null,null,null,null,null,null,null,null,null,null,null,null,null,null,null,null,null,null,null,null,null,null,null,null,null,null,null,null,null,null,null,null,null,null,null,null,"Код диапазона:","Название диапазона:","Сфера регулирования:","Подсфера:","Тип информации в шаблоне:","Состояние шаблона:","Периодичность:","\"Геотип\" шаблона:","Тип шаблона:","Заказчик:"]
[null,null,null,null,null,null,null,null,null,null,null,null,null,null,null,null,null,null,null,null,null,null,null,null,null,null,null,null,null,null,null,null,null,null,null,null,null,null,null,null,null,null,null,null,null,null,null,"ps_sr","Сфера регулирования:","Не определено","Не определено","Не определено","Не определено","Не определено","Не определено","Не определено","Не определено"]
[null,null,null,null,null,null,null,null,null,null,null,null,null,null,null,null,null,null,null,null,null,null,null,null,null,null,null,null,null,null,null,null,null,null,null,null,null,null,null,null,null,null,null,null,null,null,null,"ps_ti","Тип информации в шаблоне:","NETS","водоотведение - очистка","Статистический","Проект","Единовременный","Региональный шаблон","Атомарный","РЭК"]
[null,null,null,"Паспорт к шаблону",null,null,null,null,null,null,null,null,null,null,null,null,null,null,null,null,null,null,null,null,null,null,null,null,null,null,null,null,null,null,null,null,null,null,null,null,null,null,null,null,null,null,null,"ps_ssh","Состояние шаблона:","Аэропорты","водоотведение - передача","Расчетный","Утвержден","Ежемесячный","Муниципальный шаблон","Сводный","ФСТ"]
[null,null,null,null,null,null,null,null,null,null,null,null,null,null,null,null,null,null,null,null,null,null,null,null,null,null,null,null,null,null,null,null,null,null,null,null,null,null,null,null,null,null,null,null,null,null,null,"ps_p","Периодичность:","Газ","водоотведение - прием","Обосновывающие материалы",null,"Ежеквартальный","Шаблон от организации",null,"Экспертная организация"]
[null,null,null,"1. Общие сведения",null,null,null,null,null,null,null,null,null,null,null,null,null,null,null,null,null,null,null,null,null,null,null,null,null,null,null,null,null,null,null,null,null,null,null,null,null,null,null,null,null,null,null,"ps_geo","\"Геотип\" шаблона:","Железные дороги","водоснабжение - очистка",null,null,"Ежегодный"]
[null,null,null,"1.1","Код","EE.BALANCE.SBO.3.23",null,null,null,null,null,null,null,null,null,null,null,null,null,null,null,null,null,null,null,null,null,null,null,null,null,null,null,null,null,null,null,null,null,null,null,null,null,null,null,null,null,"ps_tsh","Тип шаблона:","ЖКХ","водоснабжение - передача"]
[null,null,null,"1.2","Краткое наименование","Отчет о фактическом исполнении прогнозных балансов производства и поставок электрической (тепловой) энергии и мощности по электростанции",null,null,null,null,null,null,null,null,null,null,null,null,null,null,null,null,null,null,null,null,null,null,null,null,null,null,null,null,null,null,null,null,null,null,null,null,null,null,null,null,null,"ps_psr","Подсфера:","Медицина","водоснабжение - подъем"]
[null,null,null,"1.3","Полное наименование","Отчет о фактическом исполнении прогнозных балансов производства и поставок электрической (тепловой) энергии и мощности по электростанции",null,null,null,null,null,null,null,null,null,null,null,null,null,null,null,null,null,null,null,null,null,null,null,null,null,null,null,null,null,null,null,null,null,null,null,null,null,null,null,null,null,"ps_z","Заказчик:","Порты","выработка ТС  "]
[null,null,null,"1.4","Сфера регулирования ","Электроэнергетика",null,null,null,null,null,null,null,null,null,null,null,null,null,null,null,null,null,null,null,null,null,null,null,null,null,null,null,null,null,null,null,null,null,null,null,null,null,null,null,null,null,null,null,"Связь","выработка ТС в режиме комбинированной выработки"]
[null,null,null,"1.5","Подсфера","Не определено",null,null,null,null,null,null,null,null,null,null,null,null,null,null,null,null,null,null,null,null,null,null,null,null,null,null,null,null,null,null,null,null,null,null,null,null,null,null,null,null,null,null,null,"Транспорт","выработка электрической энергии"]
[null,null,null,"1.6","Состояние шаблона (Утвержден/Проект)","Проект",null,null,null,null,null,null,null,null,null,null,null,null,null,null,null,null,null,null,null,null,null,null,null,null,null,null,null,null,null,null,null,null,null,null,null,null,null,null,null,null,null,null,null,"Электроэнергетика","выработка+передача+сбыт ТС"]
[null,null,null,"1.7","Заказчик","РЭК",null,null,null,null,null,null,null,null,null,null,null,null,null,null,null,null,null,null,null,null,null,null,null,null,null,null,null,null,null,null,null,null,null,null,null,null,null,null,null,null,null,null,null,null,"передача ТС"]
[null,null,null,"1.8","Отчитывается","Региональный шаблон",null,null,null,null,null,null,null,null,null,null,null,null,null,null,null,null,null,null,null,null,null,null,null,null,null,null,null,null,null,null,null,null,null,null,null,null,null,null,null,null,null,null,null,null,"передача ЭЭ"]
[null,null,null,"1.9","Тип шаблона","Атомарный","Если шаблон сводный, необходимо указать код атомарного шаблона для него:",null,null,null,null,null,null,null,null,null,null,null,null,null,null,null,null,null,null,null,null,null,null,null,null,null,null,null,null,null,null,null,null,null,null,null,null,null,null,null,null,null,null,null,"сбыт ТС"]
[null,null,null,"1.10","Текущая версия","1.0",null,null,null,null,null,null,null,null,null,null,null,null,null,null,null,null,null,null,null,null,null,null,null,null,null,null,null,null,null,null,null,null,null,null,null,null,null,null,null,null,null,null,null,null,"сбыт ЭЭ"]
[null,null,null,null,null,null,null,null,null,null,null,null,null,null,null,null,null,null,null,null,null,null,null,null,null,null,null,null,null,null,null,null,null,null,null,null,null,null,null,null,null,null,null,null,null,null,null,null,null,null,"ТБО"]
[null,null,null,"2. Организационные"]
[null,null,null,"2.1","Тип информации в шаблоне ","Расчетный"]
[null,null,null,"2.2","Ответственный регулятор (от заказчика)"]
[null,null,null,"2.3","Ответственный специалист (от СМА)"]
[null,null,null,"2.4","Ответственный программист (от СМА)","Кропачева А.В."]
[null,null,null,"2.5","Ответственные за сбор данных (от СМА)"]
[null,null,null,"2.6","Ответственные за сбор данных (от заказчика)"]
[]
[null,null,null,"3. Законодательство (методики, приказы, постановления ...)"]
[null,null,"first","3.1","Документ1"]
[null,null,"end","Добавить документ"]
[]
[null,null,null,"4. Периодичность"]
[null,null,null,"4.1","Периодичность","Не определено"]
[null,null,null,null,"Мониторинги(прошедшие и плановые)","Дата начала","Дата окончания","Согласно (приказ, постановление, письмо)"]
[null,null,"first","4.2.1","Мониторинг1"]
[null,null,"end","Добавить мониторинг"]
[]
[null,null,null,"5. Состав шаблона"]
[null,null,null,null,"Лист","Последняя дата изменений эскиза","Состояние листа","Наименование витрины для листа","Комментарии"]
[null,null,"first","5.1.1","Инструкция","24.03.2009","В разработке"]
[null,null,"Удалить","5.1.2","Справочники","24.03.2009","В разработке"]
[null,null,"Удалить","5.1.3","Титульный","24.03.2009","В разработке"]
[null,null,"Удалить","5.1.4","янв","24.03.2009","В разработке"]
[null,null,"Удалить","5.1.5","фев","25.03.2009","В разработке"]
[null,null,"Удалить","5.1.6","март","25.03.2010","В разработке"]
[null,null,"Удалить","5.1.7","апр","25.03.2011","В разработке"]
[null,null,"Удалить","5.1.8","май","25.03.2012","В разработке"]
[null,null,"Удалить","5.1.9","июнь","25.03.2013","В разработке"]
[null,null,"Удалить","5.1.10","июль","25.03.2014","В разработке"]
[null,null,"Удалить","5.1.11","авг","25.03.2015","В разработке"]
[null,null,"Удалить","5.1.12","сент","25.03.2016","В разработке"]
[null,null,"Удалить","5.1.13","окт","25.03.2017","В разработке"]
[null,null,"Удалить","5.1.14","нояб","25.03.2018","В разработке"]
[null,null,"Удалить","5.1.15","дек","25.03.2019","В разработке"]
[null,null,"Удалить","5.1.16","свод","25.03.2020","В разработке"]
[null,null,"Удалить","5.1.17","Проверка","24.03.2009","В разработке"]
[null,null,"end","Добавить лист"]
[]
[null,null,null,"6. Сроки и даты"]
[null,null,null,"6.1.1","Даты получения последних эскизов, от экспертов","24.03.2009"]
[null,null,null,"6.1.2","Даты отправки шаблона на проверку","25.03.2009"]
[null,null,null,"6.1.3","Предполагаемый срок сдачи шаблона в эксплуатацию"]
[]
[null,null,null,"7. Версии"]
[null,null,null,null,"Версия","Отличия от предыдущей"]
[null,null,"first","7.1"]
[null,null,"end","Добавить версию"]
[]
[null,null,null,"8. Дополнительно"]
[null,null,null,"8.1","Аналогичные(\"похожие\") шаблоны"]
[null,null,null,"8.2","Особенности шаблона"]
[null,null,null,"8.3","Модуль на основе данного шаблона"]
[null,null,null,"8.4","Процедуры загрузки данных в витрины"]

{"sheet":"modUpdTemplMain","index":27,"n_rows":0,"n_cols":0,"rows_kept":0,"cut":false,"hidden":true,"merged":[]}

{"sheet":"modRegionSelectSub","index":28,"n_rows":0,"n_cols":0,"rows_kept":0,"cut":false,"hidden":true,"merged":[]}

{"sheet":"modThisWorkbook","index":29,"n_rows":0,"n_cols":0,"rows_kept":0,"cut":false,"hidden":true,"merged":[]}

{"sheet":"modReestrMO","index":30,"n_rows":0,"n_cols":0,"rows_kept":0,"cut":false,"hidden":true,"merged":[]}

{"sheet":"modSheetMain01","index":31,"n_rows":0,"n_cols":0,"rows_kept":0,"cut":false,"hidden":true,"merged":[]}

{"sheet":"modSheetMain02","index":32,"n_rows":0,"n_cols":0,"rows_kept":0,"cut":false,"hidden":true,"merged":[]}

{"sheet":"modSheetMain03","index":33,"n_rows":0,"n_cols":0,"rows_kept":0,"cut":false,"hidden":true,"merged":[]}

{"sheet":"modSheetMain04","index":34,"n_rows":0,"n_cols":0,"rows_kept":0,"cut":false,"hidden":true,"merged":[]}

{"sheet":"modSheetMain05","index":35,"n_rows":0,"n_cols":0,"rows_kept":0,"cut":false,"hidden":true,"merged":[]}